bitfinex-derivatives/quotes_ETHF0:USTF0_20260316
["timestamp","ask_amount","ask_price","bid_price","bid_amount"]
[1773624710340,1.67853905,2179.1,2178.2,1.70759242]
[1773624710936,1.67853905,2179.1,2178.2,0.00388751]
[1773624711439,1.67853905,2179.1,2178.2,1.70759242]
[1773624711638,1.67853905,2179.1,2178.2,0.00388751]
[1773624714344,1.67853905,2179.1,2177.5,1.88621383]
[1773624714345,1.71868173,2178.9,2177.5,1.88621383]
[1773624715438,1.71868173,2178.9,2177.5,1.89021338]
[1773624722449,1.71868173,2178.7,2177.5,1.66064338]
[1773624725351,1.71868173,2178.2,2177.1,1.65664383]
[1773624725541,1.71868173,2177.8,2176.6,1.65664383]
[1773624725941,1.71868173,2177.6,2176.6,1.65664383]
[1773624726351,1.71868173,2177.6,2176.6,1.66220017]
[1773624726647,1.71868173,2177.4,2176.4,1.65664383]
[1773624726842,1.71868173,2177.4,2175.9,0.23285095]
[1773624727749,1.72278971,2177.4,2175.9,0.23802608]
[1773624728144,0.00410798,2177.4,2176.3,0.21540152]
[1773624728343,1.72278971,2177.4,2176.3,0.21540152]
[1773624729253,1.72278971,2177.4,2176.5,0.21913647]
[1773624729652,1.71868173,2178.2,2176.9,0.21206152]
[1773624729953,1.71868173,2178.2,2177.1,0.21206152]
[1773624730545,1.72322373,2178.2,2177.3,0.20672771]
[1773624730750,1.72322373,2178.2,2177.1,0.19910173]
[1773624730950,1.72322373,2178.2,2177.2,0.19910173]
[1773624731752,1.72322373,2178.2,2177.4,0.20308604]
[1773624731953,1.72322373,2178.2,2177.2,0.19970298]
[1773624735657,1.72322373,2178.2,2176.8,0.21520902]
[1773624736262,1.71868173,2177.8,2176.6,0.21118798]
[1773624737456,1.71868173,2177.6,2176.2,0.20527832]
[1773624737657,2.46666524,2177.7,2176.1,0.20528642]
[1773624737658,1.71868173,2177.1,2176.1,0.20528642]
[1773624737862,1.71868173,2177.1,2175.9,0.21046155]
[1773624742969,1.71868173,2177.1,2175.9,0.00517513]
[1773624743671,1.94831173,2177.1,2175.1,7.12411942]
[1773624743864,1.93684328,2176.7,2175.0,0.22984]
[1773624744069,1.70717328,2176.5,2175.0,0.22984]
[1773624744870,1.71273828,2176.5,2175.0,0.23499988]
[1773624747773,1.71273828,2176.5,2175.0,6.25299988]
[1773624748171,1.71273828,2176.5,2175.5,0.22979]
[1773624748473,1.71273828,2176.5,2175.0,0.00515988]
[1773624748669,1.71273828,2176.5,2175.1,0.22983]
[1773624749774,1.71273828,2176.5,2175.6,0.22978]
[1773624754569,0.005565,2176.5,2175.6,0.22978]
[1773624756575,0.005565,2176.5,2175.9,0.02348294]
[1773624756771,1.71273828,2176.5,2175.9,0.02348294]
[1773624761280,1.71273828,2176.5,2175.8,0.22976]
[1773624762974,1.71273828,2176.5,2175.2,7.35393942]
[1773624763276,1.71273828,2176.5,2175.2,0.22982]
[1773624764381,1.71273828,2176.5,2175.2,7.35393942]
[1773624764781,1.71273828,2176.5,2175.2,6.24782]
[1773624765379,1.71273828,2176.5,2175.2,13.37193942]
[1773624765786,1.71273828,2176.5,2175.2,0.22982]
[1773624766079,1.71273828,2176.5,2175.3,6.018]
[1773624766883,1.71273828,2176.5,2175.4,0.2298]
[1773624769084,1.70717328,2176.3,2175.4,0.2298]
[1773624769788,1.70717328,2176.3,2175.3,6.018]
[1773624770286,1.70717328,2176.3,2175.0,6.02315988]
[1773624770486,1.70717328,2176.1,2175.0,6.02315988]
[1773624770687,1.70717328,2175.9,2175.0,6.02315988]
[1773624770982,1.70717328,2175.9,2175.1,0.22983]
[1773624771289,1.70717328,2175.9,2175.0,0.00515988]
[1773624771482,1.70717328,2175.9,2174.6,0.22988]
[1773624772082,1.65159716,2175.7,2174.3,6.018]
[1773624772282,1.65159716,2175.5,2174.4,6.018]
[1773624772583,1.65159716,2175.5,2174.5,0.2299]
[1773624773589,1.65159716,2175.5,2174.8,0.02871313]
[1773624773883,1.6326896,2176.3,2174.8,0.02871313]
[1773624774087,1.6326896,2176.1,2174.8,0.02871313]
[1773624775093,1.6326896,2176.1,2174.9,0.22986]
[1773624775993,1.6326896,2176.1,2175.1,0.22983]
[1773624776183,1.6326896,2176.1,2175.1,6.24783]
[1773624779193,1.44917426,2176.4,2175.6,1.65889514]
[1773624782692,1.44917426,2176.4,2175.6,1.42911514]
[1773624782891,1.44917426,2176.4,2175.4,1.42911514]
[1773624784490,1.44917426,2176.4,2175.3,6.018]
[1773624784491,1.44917426,2176.4,2175.6,1.42911514]
[1773624789794,1.44917426,2176.4,2175.4,1.42911514]
[1773624790189,1.44917426,2176.4,2175.1,13.14211942]
[1773624790387,1.44917426,2176.4,2175.2,1.42911514]
[1773624792996,1.44917426,2176.4,2175.4,1.42911514]
[1773624793192,1.44917426,2176.4,2175.2,1.42911514]
[1773624793889,1.44917426,2176.2,2175.2,1.42911514]
[1773624796298,1.44917426,2176.0,2175.1,7.44711514]
[1773624797597,1.44917426,2176.0,2175.2,1.42911514]
[1773624799994,1.44917426,2176.0,2175.1,7.44711514]
[1773624800395,1.44917426,2176.0,2175.2,1.42911514]
[1773624806504,1.5363649,2176.4,2175.2,1.65893514]
[1773624806802,1.5363649,2176.2,2175.2,1.65893514]
[1773624807198,1.5363649,2176.4,2175.3,1.53148753]
[1773624809800,1.5363649,2176.4,2175.4,1.53148753]
[1773624810000,1.5363649,2176.4,2175.6,1.53148753]
[1773624810406,1.5363649,2176.4,2175.3,7.12411942]
[1773624810407,1.5363649,2176.4,2175.4,1.53148753]
[1773624810704,1.5363649,2176.2,2175.0,1.53148753]
[1773624810903,5.45302581,2176.3,2175.0,1.53148753]
[1773624810904,1.5363649,2176.0,2175.0,1.53148753]
[1773624811501,1.5363649,2176.0,2174.8,7.54948753]
[1773624812603,1.5363649,2176.0,2174.9,1.53148753]
[1773624812906,1.5363649,2175.8,2174.9,1.53148753]
[1773624820409,1.5363649,2175.8,2174.7,1.53148753]
[1773624822808,1.5363649,2175.8,2174.9,1.53148753]
[1773624823007,1.5363649,2175.8,2175.1,1.53148753]
[1773624825709,1.5363649,2175.8,2174.9,7.55048753]
[1773624826307,1.5363649,2175.8,2174.6,7.12411942]
[1773624826506,1.5363649,2175.4,2174.3,1.53148753]
[1773624826712,1.5363649,2175.2,2174.3,1.53148753]
[1773624827607,1.5363649,2175.2,2174.3,1.53566744]
[1773624829807,1.5363649,2175.4,2174.3,1.53566744]
[1773624830410,1.5363649,2175.4,2174.4,1.53148753]
[1773624831610,1.5363649,2175.4,2174.6,1.53148753]
[1773624831911,1.5363649,2175.8,2174.6,1.53148753]
[1773624832111,1.5663582,2175.6,2174.6,1.53148753]
[1773624837012,1.5663582,2175.6,2174.8,1.58143075]
[1773624837613,1.5663582,2175.6,2174.9,1.58143075]
[1773624838015,1.5663582,2175.6,2174.8,7.60043075]
[1773624838918,1.5663582,2175.6,2174.8,1.58143075]
[1773624841916,1.62375222,2176.0,2175.0,1.58143075]
[1773624842116,1.62375222,2175.8,2174.5,1.58143075]
[1773624842312,1.62375222,2175.8,2174.6,1.58143075]
[1773624842622,1.62375222,2175.6,2174.6,1.58143075]
[1773624843726,1.62375222,2175.9,2174.8,1.58143075]
[1773624843917,1.62375222,2175.7,2174.8,1.58143075]
[1773624846020,1.62375222,2176.1,2175.0,1.58143075]
[1773624846220,1.62375222,2175.9,2175.0,1.58143075]
[1773624846416,1.62375222,2175.9,2175.1,6.019]
[1773624846621,1.62375222,2175.9,2175.2,1.58143075]
[1773624848632,1.62375222,2175.9,2175.0,1.58143075]
[1773624848926,1.62375222,2175.9,2174.9,1.81129075]
[1773624849624,1.62375222,2175.9,2174.9,1.58143075]
[1773624849826,1.62375222,2175.7,2174.9,1.58143075]
[1773624850929,1.62375222,2176.1,2175.1,1.58143075]
[1773624851225,1.62375222,2176.3,2175.5,1.58143075]
[1773624851528,1.62375222,2176.3,2175.6,1.58143075]
[1773624853430,1.62931722,2176.5,2175.6,1.58143075]
[1773624858030,1.62375222,2176.7,2175.8,1.58143075]
[1773624858234,1.62375222,2177.2,2175.8,1.58143075]
[1773624858431,1.62375222,2177.2,2175.9,1.81118075]
[1773624859030,1.62958822,2177.2,2175.9,1.5865659]
[1773624859630,4.33187426,2177.2,2175.9,0.00513515]
[1773624859832,1.62375222,2177.0,2175.9,0.00513515]
[1773624860032,1.62375222,2177.0,2175.9,1.5865659]
[1773624860930,1.62375222,2177.0,2176.1,1.58143075]
[1773624862536,0.005836,2177.2,2176.5,1.52363349]
[1773624862731,3.84825839,2178.2,2176.5,1.52363349]
[1773624862932,1.56606281,2178.0,2176.7,1.52363349]
[1773624863136,1.56606281,2178.0,2176.9,1.52363349]
[1773624863835,1.57027106,2178.0,2176.9,1.52363349]
[1773624864636,1.57027106,2178.0,2176.6,1.52363349]
[1773624865635,1.56606281,2177.7,2176.4,1.75333349]
[1773624866537,1.56606281,2177.9,2177.0,1.52363349]
[1773624866737,1.56606281,2177.9,2177.1,1.52363349]
[1773624867136,1.56606281,2177.9,2176.9,0.22964]
[1773624867434,1.56606281,2177.9,2176.9,1.52363349]
[1773624867738,1.56606281,2177.9,2176.4,1.52363349]
[1773624868038,1.56606281,2177.7,2176.4,1.52363349]
[1773624868234,1.56606281,2177.7,2176.6,1.52363349]
[1773624868627,1.56606281,2177.7,2176.4,1.52363349]
[1773624869836,1.56606281,2177.7,2176.0,1.52363349]
[1773624872140,1.56606281,2177.5,2176.0,1.52363349]
[1773624873033,1.56606281,2177.5,2176.2,1.52363349]
[1773624877541,1.56606281,2177.5,2176.6,1.52363349]
[1773624879838,1.56606281,2177.5,2176.8,1.52363349]
[1773624880443,1.56606281,2177.5,2176.8,7.54163349]
[1773624880834,1.56606281,2177.5,2176.9,1.52363349]
[1773624883349,1.56606281,2177.5,2176.5,1.75332349]
[1773624883541,1.56606281,2177.5,2176.5,6.018]
[1773624883946,1.56606281,2177.5,2176.6,1.52363349]
[1773624884141,1.56606281,2177.5,2176.5,6.018]
[1773624884443,1.56606281,2177.3,2176.2,1.52363349]
[1773624884644,1.56606281,2177.1,2176.1,6.018]
[1773624884941,1.56606281,2177.1,2176.2,1.52363349]
[1773624886138,1.56606281,2177.1,2176.0,1.52363349]
[1773624886342,1.56606281,2177.1,2176.0,7.54163349]
[1773624886743,1.56606281,2176.9,2176.1,1.52363349]
[1773624891653,1.56606281,2176.9,2176.3,1.52363349]
[1773624893549,1.56606281,2176.9,2176.3,6.019]
[1773624894459,1.56606281,2176.9,2176.1,6.019]
[1773624894855,1.56606281,2176.9,2176.2,1.41403503]
[1773624895261,1.43772625,2177.1,2176.4,1.41403503]
[1773624895958,1.43772625,2177.1,2176.5,1.41403503]
[1773624896163,1.43772625,2177.1,2176.6,7.43303503]
[1773624897157,1.43772625,2177.1,2176.6,6.019]
[1773624897365,1.43772625,2177.1,2176.5,6.019]
[1773624898365,1.43772625,2177.3,2176.6,1.41403503]
[1773624899665,1.43772625,2177.3,2176.6,6.019]
[1773624899861,1.43772625,2177.1,2176.6,6.019]
[1773624900766,1.43772625,2177.4,2176.7,1.41403503]
[1773624902261,1.43772625,2177.4,2176.4,1.41403503]
[1773624902565,1.43772625,2177.4,2176.5,6.019]
[1773624903170,1.43772625,2177.2,2176.0,1.41403503]
[1773624903363,1.43772625,2177.0,2176.1,6.019]
[1773624903667,1.43772625,2177.0,2176.1,7.43303503]
[1773624904260,1.43772625,2177.0,2176.2,1.41403503]
[1773624904465,1.43772625,2177.2,2176.2,1.64374503]
[1773624905675,1.43772625,2177.5,2176.7,1.41403503]
[1773624905874,1.43772625,2177.5,2176.9,1.41403503]
[1773624906374,1.43772625,2177.5,2177.0,6.019]
[1773624906572,1.43772625,2177.5,2177.0,7.43303503]
[1773624907070,1.43772625,2177.5,2176.7,1.41403503]
[1773624907270,1.43772625,2177.5,2177.1,1.41403503]
[1773624908066,1.43772625,2177.5,2177.1,6.019]
[1773624908975,1.43772625,2177.5,2177.1,7.43303503]
[1773624909170,1.4419345,2178.0,2177.2,1.41403503]
[1773624909365,7.04764659,2177.9,2177.2,1.41403503]
[1773624909567,1.43772625,2177.9,2177.3,6.019]
[1773624909865,0.00420825,2178.0,2177.4,1.41403503]
[1773624909866,1.4419345,2178.0,2177.4,1.41403503]
[1773624910068,1.43772625,2178.4,2177.4,1.41403503]
[1773624910266,1.43772625,2178.4,2177.6,1.41403503]
[1773624910463,1.43772625,2178.7,2177.6,1.41403503]
[1773624910665,3.22386962,2179.0,2178.3,1.18756758]
[1773624910863,1.43772625,2179.2,2178.5,1.18756758]
[1773624911066,1.44222815,2179.2,2178.6,6.019]
[1773624912969,1.44222815,2179.2,2178.5,0.00412567]
[1773624913170,1.44222815,2179.2,2178.5,6.02212567]
[1773624913366,1.44222815,2179.2,2178.5,0.00412567]
[1773624913571,1.44222815,2179.2,2178.5,6.02212567]
[1773624913771,1.44222815,2179.2,2178.0,7.16839951]
[1773624913972,1.44222815,2179.2,2178.1,6.018]
[1773624914373,1.67163815,2179.2,2176.9,1.14906413]
[1773624914579,1.67163815,2179.2,2176.8,17.61473504]
[1773624914580,1.67163815,2179.2,2177.3,1.14906413]
[1773624914778,1.67163815,2179.2,2177.3,1.15401896]
[1773624915273,1.67163815,2179.2,2177.5,1.13693193]
[1773624915471,1.44222815,2179.2,2177.7,1.13693193]
[1773624915676,1.44222815,2179.2,2177.9,1.13693193]
[1773624916078,1.44222815,2179.2,2178.0,6.017]
[1773624916377,1.44222815,2179.2,2178.1,1.13388277]
[1773624921876,1.44222815,2179.2,2178.3,1.20843934]
[1773624922079,0.0045019,2179.2,2178.3,1.20843934]
[1773624922482,0.0045019,2179.2,2178.5,1.20168517]
[1773624922678,0.0045019,2179.2,2178.6,6.016]
[1773624922879,1.41081381,2179.2,2178.6,7.21726165]
[1773624923081,1.41081381,2179.2,2178.7,1.20126165]
[1773624923281,1.40631191,2179.4,2178.7,1.20126165]
[1773624924282,1.41023401,2179.4,2178.7,1.20126165]
[1773624924981,0.0039221,2179.4,2178.7,1.20126165]
[1773624925579,1.41023401,2179.4,2178.8,6.016]
[1773624925779,1.41023401,2179.4,2178.9,1.16952127]
[1773624925975,1.41023401,2179.4,2178.9,1.17424327]
[1773624926782,0.0039221,2179.4,2178.9,1.17424327]
[1773624928081,1.41023401,2179.4,2178.9,1.17424327]
[1773624928578,1.40631191,2180.2,2178.9,1.17424327]
[1773624928783,1.40631191,2180.2,2178.9,1.40367327]
[1773624929783,1.41108355,2180.2,2178.9,1.40367327]
[1773624930186,1.41108355,2180.2,2179.0,6.015]
[1773624930386,1.41108355,2180.2,2179.0,1.10997993]
[1773624930685,1.41108355,2180.2,2179.1,6.015]
[1773624930886,1.41108355,2180.2,2179.0,6.015]
[1773624931080,1.41108355,2180.2,2178.9,1.11468745]
[1773624931383,1.41108355,2180.2,2178.9,0.004722]
[1773624931886,1.41108355,2180.2,2178.9,1.10858205]
[1773624933382,1.41108355,2180.2,2178.9,0.004722]
[1773624934188,1.41108355,2180.2,2178.9,1.09593141]
[1773624936087,1.40631191,2180.0,2178.9,0.004722]
[1773624937187,1.40631191,2180.0,2179.0,1.09364565]
[1773624937589,1.41108355,2180.2,2179.2,1.09364565]
[1773624937791,1.41108355,2180.2,2179.4,1.10322953]
[1773624937990,1.41108355,2180.2,2179.5,1.10322953]
[1773624943397,1.41108355,2180.2,2179.1,1.14142466]
[1773624943592,1.41108355,2180.2,2179.0,1.14136813]
[1773624943798,1.40631191,2180.0,2178.6,1.14136813]
[1773624943991,1.40631191,2179.8,2178.6,1.14136813]
[1773624944296,1.40631191,2179.6,2178.6,1.14136813]
[1773624944797,1.40631191,2179.6,2178.6,1.14511132]
[1773624945496,1.40631191,2179.6,2178.6,0.00374319]
[1773624946689,1.40631191,2179.4,2178.6,1.18059928]
[1773624951902,1.40631191,2179.4,2178.6,0.00374319]
[1773624952202,1.40631191,2179.4,2178.4,1.18777102]
[1773624953301,1.40631191,2179.4,2178.4,1.191923]
[1773624959807,1.40631191,2179.4,2178.6,1.19123336]
[1773624961007,1.40631191,2179.4,2178.4,0.00415198]
[1773624961008,1.40631191,2179.4,2178.4,1.19427349]
[1773624961202,1.40631191,2179.4,2178.4,1.42375349]
[1773624961508,5.99734665,2180.0,2178.6,1.18843802]
[1773624961809,1e-08,2180.2,2179.3,2.69354081]
[1773624962004,1e-08,2180.2,2179.4,6.014]
[1773624962705,1.50460485,2182.1,2180.1,2.46416081]
[1773624962904,1.50460485,2182.1,2180.5,7.37844416]
[1773624963098,1.50460485,2182.1,2180.7,0.11440106]
[1773624963705,1.50994314,2182.1,2180.8,0.11440106]
[1773624964701,1.50994314,2182.1,2180.7,0.00564049]
[1773624964905,1.50994314,2182.1,2180.7,0.13558775]
[1773624965713,1.49426901,2181.8,2180.7,0.00564049]
[1773624965909,1.49426901,2181.8,2180.3,0.11758631]
[1773624966213,1.49789516,2180.9,2179.7,0.11249968]
[1773624967112,1.49789516,2180.9,2179.7,0.1182612]
[1773624968408,1.49789516,2180.9,2179.7,6.1302612]
[1773624968609,1.49789516,2180.9,2179.8,0.11631606]
[1773624972614,1.49789516,2180.9,2179.7,0.09643454]
[1773624976612,1.49789516,2180.9,2179.8,0.11516517]
[1773624980223,1.49789516,2180.9,2179.7,0.10076174]
[1773624980816,1.49789516,2180.9,2179.9,0.09517422]
[1773624981323,1.49789516,2180.9,2180.1,0.09042604]
[1773624981512,1.4665116,2181.6,2180.1,0.09042604]
[1773624982115,1.46766409,2181.4,2180.1,0.09042604]
[1773624983418,1.47078982,2181.2,2179.7,0.07143678]
[1773624985725,1.47078982,2181.2,2179.9,0.02006067]
[1773624985917,1.47078982,2181.2,2180.1,0.0198028]
[1773624986321,1.48750759,2181.4,2180.5,0.0136281]
[1773624986526,1.48750759,2182.0,2180.5,0.0136281]
[1773624986923,1.48750759,2182.0,2180.7,0.01278745]
[1773624987818,1.48750759,2182.0,2180.9,0.01986607]
[1773624988823,1.48750759,2182.0,2180.4,6.01]
[1773624989019,1.48750759,2182.0,2180.2,6.23929]
[1773624989225,0.00533829,2182.1,2180.2,6.23929]
[1773624989226,1.48874804,2181.8,2180.2,6.23929]
[1773624990324,1.4849419,2181.7,2180.2,6.23929]
[1773624990523,1.4849419,2181.7,2180.2,0.22929]
[1773624990920,1.48450234,2181.5,2179.8,6.01]
[1773624991327,1.48450234,2181.3,2179.8,6.01]
[1773624993431,1.48450234,2181.3,2179.7,7.15494568]
[1773624993633,1.48320416,2181.1,2179.7,13.16394568]
[1773624994132,1.48320416,2181.1,2179.8,0.22934]
[1773624996130,1.48320416,2181.1,2179.8,7.37852416]
[1773624996528,1.48320416,2181.1,2179.8,0.22934]
[1773625001539,1.48320416,2181.1,2179.8,6.23834]
[1773625001736,1.48201949,2180.9,2179.7,0.00576152]
[1773625002037,3.80721391,2181.1,2179.7,0.00576152]
[1773625002237,1.48201949,2181.5,2180.2,0.22929]
[1773625002433,1.48201949,2181.5,2180.4,0.22928]
[1773625004235,1.48201949,2181.5,2179.9,7.38181957]
[1773625004435,1.48201949,2181.5,2179.9,0.22933]
[1773625006131,1.71118949,2181.5,2179.9,0.22933]
[1773625006340,1.46837849,2181.3,2179.9,6.009]
[1773625006839,1.46837849,2181.3,2179.9,6.04820561]
[1773625007436,1.46837849,2181.3,2180.0,0.03752526]
[1773625013438,0.22917,2181.5,2180.0,0.03752526]
[1773625013439,1.41113631,2181.1,2180.0,0.03752526]
[1773625014439,1.41113631,2181.1,2180.1,0.22931]
[1773625014643,1.41113631,2181.1,2180.2,0.06524106]
[1773625016734,1.41113631,2181.1,2180.1,0.22931]
[1773625016938,1.41113631,2181.1,2180.2,0.0642249]
[1773625018843,1.41113631,2181.1,2180.0,6.08907573]
[1773625019437,1.41113631,2181.1,2180.1,0.08031216]
[1773625020040,1.41113631,2181.1,2179.9,0.08108669]
[1773625020345,1.39836252,2180.9,2179.9,0.08108669]
[1773625020843,1.39836252,2181.3,2180.3,0.07970509]
[1773625021043,1.39836252,2181.3,2180.5,0.07970509]
[1773625024545,1.39836252,2181.3,2180.4,0.22928]
[1773625024745,1.39836252,2181.3,2180.4,0.31044847]
[1773625024953,1.39836252,2181.3,2180.5,0.08116847]
[1773625025361,1.39836252,2181.3,2180.4,0.22928]
[1773625025948,1.39836252,2181.3,2180.3,0.07826187]
[1773625026555,1.39836252,2181.3,2180.2,6.009]
[1773625027354,1.39836252,2181.3,2180.3,0.07636065]
[1773625030258,1.3953573,2181.1,2180.3,0.07636065]
[1773625031663,1.3953573,2181.1,2180.2,6.009]
[1773625032460,1.3953573,2181.1,2180.0,0.06449748]
[1773625033462,1.39252388,2180.9,2180.0,0.06449748]
[1773625033762,1.38973131,2181.3,2180.2,0.08014455]
[1773625034757,1.38973131,2181.3,2180.4,0.0799646]
[1773625045468,1.38973131,2181.3,2180.4,6.009]
[1773625045672,1.38973131,2181.3,2180.6,0.01889311]
[1773625048067,1.38973131,2181.3,2180.5,0.22927]
[1773625049778,1.38973131,2181.3,2180.1,0.01779041]
[1773625050776,1.38973131,2181.3,2180.0,13.39080957]
[1773625050777,1.38973131,2181.3,2180.3,0.01211518]
[1773625051374,1.38973131,2181.3,2180.1,0.23317659]
[1773625051575,1.41402792,2181.1,2180.1,0.01114231]
[1773625056171,1.41402792,2181.1,2179.9,7.38483937]
[1773625056376,1.41402792,2181.1,2179.9,6.24605336]
[1773625056987,1.41402792,2181.1,2180.0,0.00419251]
[1773625058279,1.41402792,2181.1,2179.9,6.009]
[1773625058778,1.41402792,2181.1,2179.9,6.01160693]
[1773625059475,1.41402792,2181.1,2179.8,7.15248957]
[1773625059675,1.4165626,2180.9,2179.7,0.00576152]
[1773625059880,1.41651895,2180.7,2179.7,0.00576152]
[1773625060977,1.41651895,2180.7,2179.8,0.00127947]
[1773625062282,1.41651895,2180.7,2179.7,0.01458267]
[1773625062480,1.41651895,2180.7,2179.8,0.00882115]
[1773625062680,1.41651895,2180.7,2179.7,0.00576152]
[1773625062879,1.41651895,2180.7,2179.7,6.02362698]
[1773625065278,1.41651895,2180.7,2179.8,0.00685137]
[1773625067680,1.41651895,2180.7,2179.7,6.01476152]
[1773625068081,1.41651895,2180.7,2179.7,6.02206316]
[1773625068982,1.41651895,2180.7,2179.7,6.01476152]
[1773625069382,1.64576895,2180.7,2179.4,0.01157161]
[1773625069582,1.64576895,2180.7,2179.3,6.01]
[1773625069583,1.40824177,2180.5,2179.3,6.01]
[1773625070386,1.41324571,2180.5,2179.3,6.0133484]
[1773625070989,1.41324571,2180.5,2179.3,0.0033484]
[1773625071281,1.41324571,2180.5,2179.3,0.03597398]
[1773625071685,1.41324571,2180.5,2179.5,0.04632602]
[1773625072084,1.41324571,2180.5,2179.7,0.04394226]
[1773625077292,1.41324571,2180.5,2179.6,0.22936]
[1773625077491,1.41324571,2180.5,2179.7,0.03411369]
[1773625078492,1.41324571,2180.5,2179.6,0.22936]
[1773625078890,1.41324571,2180.5,2179.5,0.02881785]
[1773625080897,1.41324571,2180.5,2179.6,0.02936604]
[1773625081497,1.41324571,2180.5,2179.5,0.22937]
[1773625081698,1.41324571,2180.5,2179.5,0.25807704]
[1773625085002,1.41324571,2180.5,2179.6,0.01345838]
[1773625086097,1.39960986,2180.7,2180.0,0.01280679]
[1773625086297,1.27184807,2181.0,2180.2,0.38494701]
[1773625086499,1.27184807,2181.0,2180.4,0.38494701]
[1773625086897,1.27184807,2181.9,2180.6,1.34174812]
[1773625087099,1.27184807,2181.7,2180.6,1.34174812]
[1773625087505,1.27764115,2181.7,2180.6,1.34174812]
[1773625087704,1.27764115,2181.7,2180.8,1.34174812]
[1773625087902,1.27764115,2181.7,2180.7,0.22924]
[1773625088306,1.27764115,2181.7,2180.7,1.57098812]
[1773625092412,1.27764115,2181.7,2180.5,1.57001118]
[1773625092610,1.27184807,2181.3,2180.0,1.34174812]
[1773625093605,1.27184807,2181.3,2179.7,1.34174812]
[1773625094003,1.27184807,2181.3,2179.8,0.22934]
[1773625094205,1.27184807,2181.3,2179.9,1.34174812]
[1773625094916,1.27184807,2181.3,2180.1,1.34174812]
[1773625095814,1.27184807,2181.3,2180.3,1.34174812]
[1773625096313,1.27184807,2181.3,2180.2,0.2293]
[1773625096720,1.27184807,2181.3,2180.1,1.34174812]
[1773625096917,1.27184807,2181.3,2179.7,1.34174812]
[1773625098815,1.27184807,2181.1,2179.7,1.34174812]
[1773625099521,1.27184807,2181.0,2179.7,1.34174812]
[1773625101610,1.27184807,2181.0,2180.0,0.22932]
[1773625101813,1.27184807,2181.0,2180.1,1.34174812]
[1773625104318,1.28773862,2181.6,2180.3,1.26129746]
[1773625104521,1.28773862,2181.6,2180.7,1.26129746]
[1773625106516,1.28773862,2181.6,2180.9,1.26129746]
[1773625106718,1.28773862,2181.6,2180.9,1.2646927]
[1773625107118,0.00579308,2181.7,2181.1,1.26129746]
[1773625107320,1.28773862,2182.1,2181.1,1.26129746]
[1773625107519,1.28773862,2182.1,2181.3,1.26129746]
[1773625108124,5.74291938,2183.0,2181.2,0.22919]
[1773625108125,1.28773862,2182.6,2181.5,1.26129746]
[1773625108321,1.29299718,2182.6,2181.5,1.26129746]
[1773625108528,1.29299718,2182.6,2181.0,1.26129746]
[1773625108827,1.29299718,2182.6,2181.2,1.26129746]
[1773625109628,1.28773862,2182.4,2181.2,1.26129746]
[1773625110423,1.28773862,2182.4,2180.9,0.00339524]
[1773625110424,1.28773862,2182.4,2181.0,1.26129746]
[1773625111729,1.28773862,2182.2,2181.0,1.26129746]
[1773625112425,1.28773862,2182.0,2180.9,0.00339524]
[1773625114133,1.28773862,2181.8,2180.9,0.00339524]
[1773625114532,6.008,2181.7,2180.9,0.00339524]
[1773625114730,1.28773862,2181.6,2180.5,1.26129746]
[1773625115231,1.28773862,2181.6,2179.9,1.26129746]
[1773625115433,1.28773862,2181.6,2179.9,1.49256914]
[1773625115835,1.28773862,2181.6,2179.9,1.49761672]
[1773625117236,1.28773862,2181.5,2180.1,1.26129746]
[1773625118331,1.28773862,2181.5,2180.3,1.26129746]
[1773625118630,1.28773862,2181.5,2180.5,1.26129746]
[1773625121941,1.28773862,2181.5,2180.0,1.26129746]
[1773625122741,1.28773862,2181.3,2180.0,1.26129746]
[1773625122943,1.28773862,2181.1,2180.0,1.26129746]
[1773625125444,1.28773862,2180.9,2180.0,1.26129746]
[1773625125744,1.29229211,2180.9,2180.0,1.26129746]
[1773625128144,1.29229211,2180.9,2179.9,0.00504758]
[1773625128645,1.52152211,2180.9,2179.9,0.00504758]
[1773625128843,1.28773862,2180.8,2179.9,1.26634504]
[1773625129539,1.28773862,2180.7,2179.9,1.26634504]
[1773625132346,1.28773862,2180.7,2179.9,0.00504758]
[1773625132546,1.28773862,2180.7,2179.5,1.32351527]
[1773625133748,1.28773862,2180.7,2179.5,1.32799648]
[1773625135446,1.28773862,2180.7,2179.7,1.24623817]
[1773625135847,7.30346166,2180.9,2179.7,1.24623817]
[1773625136048,1.28890817,2180.8,2179.7,1.24623817]
[1773625136856,0.00455349,2180.9,2179.9,1.24623817]
[1773625137049,1.29346166,2180.9,2180.1,1.24623817]
[1773625139048,1.29346166,2180.9,2179.6,1.24623817]
[1773625141550,6.01,2180.8,2179.6,1.24623817]
[1773625141754,1.28890817,2180.7,2179.6,1.24623817]
[1773625141959,1.28890817,2180.5,2179.6,1.24623817]
[1773625143358,1.28890817,2180.5,2179.5,0.00448121]
[1773625143550,1.28890817,2180.3,2179.0,1.24623817]
[1773625143753,1.28890817,2180.1,2179.0,1.24623817]
[1773625144556,1.28890817,2180.1,2179.0,1.25020949]
[1773625145458,1.28890817,2180.4,2179.2,1.24623817]
[1773625146860,1.28890817,2180.3,2179.2,1.24623817]
[1773625149064,6.011,2180.2,2179.2,1.24623817]
[1773625149257,1.28890817,2180.1,2179.2,1.24623817]
[1773625151363,1.28890817,2180.0,2179.2,1.24623817]
[1773625152058,1.28890817,2180.4,2179.6,1.24623817]
[1773625155765,1.28890817,2180.4,2179.4,1.24623817]
[1773625157667,1.28890817,2180.2,2179.1,1.24623817]
[1773625159469,1.28890817,2180.2,2179.3,1.24623817]
[1773625164468,3.82637327,2180.7,2179.0,0.00397132]
[1773625164469,1.22878617,2180.6,2179.5,1.25369413]
[1773625164869,1.22878617,2180.6,2179.7,1.25369413]
[1773625173574,1.22878617,2180.6,2179.2,7.15248957]
[1773625173771,1.22878617,2180.4,2179.3,1.25369413]
[1773625174376,1.22878617,2180.2,2179.1,1.25369413]
[1773625174777,1.22878617,2180.0,2179.1,1.25369413]
[1773625179586,1.22878617,2180.0,2179.0,0.00397132]
[1773625180281,1.22878617,2180.0,2179.0,1.25766545]
[1773625181084,1.22878617,2180.0,2179.0,0.00397132]
[1773625181382,1.22878617,2180.0,2179.0,1.25766545]
[1773625182393,1.22878617,2179.8,2179.0,0.00397132]
[1773625186490,1.22878617,2179.8,2178.2,1.25369413]
[1773625186687,1.22878617,2179.8,2177.5,19.01714167]
[1773625186688,1.22878617,2179.4,2178.0,1.25369413]
[1773625186892,1.22878617,2179.2,2178.0,1.25369413]
[1773625187088,1.22878617,2179.2,2177.5,1.25369413]
[1773625187390,1.22878617,2178.9,2177.3,1.25369413]
[1773625187594,1.22878617,2178.7,2177.3,1.25906978]
[1773625187794,1.22878617,2178.5,2177.3,0.00537565]
[1773625188094,1.22878617,2178.3,2177.3,0.00537565]
[1773625188588,1.22878617,2178.3,2177.3,1.22865678]
[1773625189483,1.22878617,2178.1,2177.3,1.22865678]
[1773625194505,6.014,2178.3,2177.3,1.22865678]
[1773625194506,1.22569476,2178.3,2177.3,1.22865678]